{"text_format":"3","workbook":"xlsx","n_sheets":1,"sheets":["report"],"read":"whole","date_system":"1900"}

{"sheet":"report","index":0,"n_rows":44,"n_cols":37,"rows_kept":44,"merged":[[2,0,2,36],[3,0,3,36],[4,0,4,36],[6,2,11,2],[6,3,6,34],[6,35,7,36],[7,0,11,0],[7,1,11,1],[7,3,8,8],[7,9,8,10],[7,11,8,22],[7,23,8,32],[7,33,8,34],[8,35,8,36],[9,3,11,3],[9,4,11,4],[9,5,11,5],[9,6,11,6],[9,7,11,7],[9,8,11,8],[9,9,11,9],[9,10,11,10],[9,11,11,11],[9,12,11,12],[9,13,11,13],[9,14,11,14],[9,15,11,15],[9,16,11,16],[9,17,11,17],[9,18,11,18],[9,19,11,19],[9,20,11,20],[9,21,11,21],[9,22,11,22],[9,23,11,23],[9,24,11,24],[9,25,11,25],[9,26,11,26],[9,27,11,27],[9,28,11,28],[9,29,11,29],[9,30,11,30],[9,31,11,31],[9,32,11,32],[9,33,11,33],[9,34,11,34],[10,35,11,35],[10,36,11,36]]}
[]
[]
[" Меню-требование на выдачу продуктов питания  № _______"," Меню-требование на выдачу продуктов питания  № _______"," Меню-требование на выдачу продуктов питания  № _______"," Меню-требование на выдачу продуктов питания  № _______"," Меню-требование на выдачу продуктов питания  № _______"," Меню-требование на выдачу продуктов питания  № _______"," Меню-требование на выдачу продуктов питания  № _______"," Меню-требование на выдачу продуктов питания  № _______"," Меню-требование на выдачу продуктов питания  № _______"," Меню-требование на выдачу продуктов питания  № _______"," Меню-требование на выдачу продуктов питания  № _______"," Меню-требование на выдачу продуктов питания  № _______"," Меню-требование на выдачу продуктов питания  № _______"," Меню-требование на выдачу продуктов питания  № _______"," Меню-требование на выдачу продуктов питания  № _______"," Меню-требование на выдачу продуктов питания  № _______"," Меню-требование на выдачу продуктов питания  № _______"," Меню-требование на выдачу продуктов питания  № _______"," Меню-требование на выдачу продуктов питания  № _______"," Меню-требование на выдачу продуктов питания  № _______"," Меню-требование на выдачу продуктов питания  № _______"," Меню-требование на выдачу продуктов питания  № _______"," Меню-требование на выдачу продуктов питания  № _______"," Меню-требование на выдачу продуктов питания  № _______"," Меню-требование на выдачу продуктов питания  № _______"," Меню-требование на выдачу продуктов питания  № _______"," Меню-требование на выдачу продуктов питания  № _______"," Меню-требование на выдачу продуктов питания  № _______"," Меню-требование на выдачу продуктов питания  № _______"," Меню-требование на выдачу продуктов питания  № _______"," Меню-требование на выдачу продуктов питания  № _______"," Меню-требование на выдачу продуктов питания  № _______"," Меню-требование на выдачу продуктов питания  № _______"," Меню-требование на выдачу продуктов питания  № _______"," Меню-требование на выдачу продуктов питания  № _______"," Меню-требование на выдачу продуктов питания  № _______"," Меню-требование на выдачу продуктов питания  № _______"]
["   на \"2\" октября 2025 г.","   на \"2\" октября 2025 г.","   на \"2\" октября 2025 г.","   на \"2\" октября 2025 г.","   на \"2\" октября 2025 г.","   на \"2\" октября 2025 г.","   на \"2\" октября 2025 г.","   на \"2\" октября 2025 г.","   на \"2\" октября 2025 г.","   на \"2\" октября 2025 г.","   на \"2\" октября 2025 г.","   на \"2\" октября 2025 г.","   на \"2\" октября 2025 г.","   на \"2\" октября 2025 г.","   на \"2\" октября 2025 г.","   на \"2\" октября 2025 г.","   на \"2\" октября 2025 г.","   на \"2\" октября 2025 г.","   на \"2\" октября 2025 г.","   на \"2\" октября 2025 г.","   на \"2\" октября 2025 г.","   на \"2\" октября 2025 г.","   на \"2\" октября 2025 г.","   на \"2\" октября 2025 г.","   на \"2\" октября 2025 г.","   на \"2\" октября 2025 г.","   на \"2\" октября 2025 г.","   на \"2\" октября 2025 г.","   на \"2\" октября 2025 г.","   на \"2\" октября 2025 г.","   на \"2\" октября 2025 г.","   на \"2\" октября 2025 г.","   на \"2\" октября 2025 г.","   на \"2\" октября 2025 г.","   на \"2\" октября 2025 г.","   на \"2\" октября 2025 г.","   на \"2\" октября 2025 г."]
["Учреждение 211 МАДОУ Советского района","Учреждение 211 МАДОУ Советского района","Учреждение 211 МАДОУ Советского района","Учреждение 211 МАДОУ Советского района","Учреждение 211 МАДОУ Советского района","Учреждение 211 МАДОУ Советского района","Учреждение 211 МАДОУ Советского района","Учреждение 211 МАДОУ Советского района","Учреждение 211 МАДОУ Советского района","Учреждение 211 МАДОУ Советского района","Учреждение 211 МАДОУ Советского района","Учреждение 211 МАДОУ Советского района","Учреждение 211 МАДОУ Советского района","Учреждение 211 МАДОУ Советского района","Учреждение 211 МАДОУ Советского района","Учреждение 211 МАДОУ Советского района","Учреждение 211 МАДОУ Советского района","Учреждение 211 МАДОУ Советского района","Учреждение 211 МАДОУ Советского района","Учреждение 211 МАДОУ Советского района","Учреждение 211 МАДОУ Советского района","Учреждение 211 МАДОУ Советского района","Учреждение 211 МАДОУ Советского района","Учреждение 211 МАДОУ Советского района","Учреждение 211 МАДОУ Советского района","Учреждение 211 МАДОУ Советского района","Учреждение 211 МАДОУ Советского района","Учреждение 211 МАДОУ Советского района","Учреждение 211 МАДОУ Советского района","Учреждение 211 МАДОУ Советского района","Учреждение 211 МАДОУ Советского района","Учреждение 211 МАДОУ Советского района","Учреждение 211 МАДОУ Советского района","Учреждение 211 МАДОУ Советского района","Учреждение 211 МАДОУ Советского района","Учреждение 211 МАДОУ Советского района","Учреждение 211 МАДОУ Советского района"]
[]
["Продукты питания",null,"Единица измерения","Количество продуктов питания, подлежащих закладке","Количество продуктов питания, подлежащих закладке","Количество продуктов питания, подлежащих закладке","Количество продуктов питания, подлежащих закладке","Количество продуктов питания, подлежащих закладке","Количество продуктов питания, подлежащих закладке","Количество продуктов питания, подлежащих закладке","Количество продуктов питания, подлежащих закладке","Количество продуктов питания, подлежащих закладке","Количество продуктов питания, подлежащих закладке","Количество продуктов питания, подлежащих закладке","Количество продуктов питания, подлежащих закладке","Количество продуктов питания, подлежащих закладке","Количество продуктов питания, подлежащих закладке","Количество продуктов питания, подлежащих закладке","Количество продуктов питания, подлежащих закладке","Количество продуктов питания, подлежащих закладке","Количество продуктов питания, подлежащих закладке","Количество продуктов питания, подлежащих закладке","Количество продуктов питания, подлежащих закладке","Количество продуктов питания, подлежащих закладке","Количество продуктов питания, подлежащих закладке","Количество продуктов питания, подлежащих закладке","Количество продуктов питания, подлежащих закладке","Количество продуктов питания, подлежащих закладке","Количество продуктов питания, подлежащих закладке","Количество продуктов питания, подлежащих закладке","Количество продуктов питания, подлежащих закладке","Количество продуктов питания, подлежащих закладке","Количество продуктов питания, подлежащих закладке","Количество продуктов питания, подлежащих закладке","Количество продуктов питания, подлежащих закладке","Расход продуктов питания (количество)","Расход продуктов питания (количество)"]
["Наименование","Код",null,"З А В Т Р А К","З А В Т Р А К","З А В Т Р А К","З А В Т Р А К","З А В Т Р А К","З А В Т Р А К","2-Й З А В Т Р А К","2-Й З А В Т Р А К","О Б Е Д","О Б Е Д","О Б Е Д","О Б Е Д","О Б Е Д","О Б Е Д","О Б Е Д","О Б Е Д","О Б Е Д","О Б Е Д","О Б Е Д","О Б Е Д","П О Л Д Н И К","П О Л Д Н И К","П О Л Д Н И К","П О Л Д Н И К","П О Л Д Н И К","П О Л Д Н И К","П О Л Д Н И К","П О Л Д Н И К","П О Л Д Н И К","П О Л Д Н И К","для обслуживающего персонала","для обслуживающего персонала","Расход продуктов питания (количество)","Расход продуктов питания (количество)"]
[{"$nulls":3},"З А В Т Р А К","З А В Т Р А К","З А В Т Р А К","З А В Т Р А К","З А В Т Р А К","З А В Т Р А К","2-Й З А В Т Р А К","2-Й З А В Т Р А К","О Б Е Д","О Б Е Д","О Б Е Д","О Б Е Д","О Б Е Д","О Б Е Д","О Б Е Д","О Б Е Д","О Б Е Д","О Б Е Д","О Б Е Д","О Б Е Д","П О Л Д Н И К","П О Л Д Н И К","П О Л Д Н И К","П О Л Д Н И К","П О Л Д Н И К","П О Л Д Н И К","П О Л Д Н И К","П О Л Д Н И К","П О Л Д Н И К","П О Л Д Н И К","для обслуживающего персонала","для обслуживающего персонала","операция","операция"]
[{"$nulls":3},"КАША ПОЛБЯНАЯ МОЛОЧНАЯ С МАСЛОМ 200/3 г (умен молоко)","КАКАО С МОЛОКОМ 180 г (с умен молоком и какао)","БУТЕРБРОД С МАСЛОМ 25/5 г","КАША ПОЛБЯНАЯ МОЛОЧНАЯ С МАСЛОМ 150/3 г (умен. крупа и молоко)","КАКАО С МОЛОКОМ 160 г (умен. молоко и какао)","БУТЕРБРОД С МАСЛОМ 25/5 г","СОК ФРУКТОВЫЙ 1/125 г","СОК ФРУКТОВЫЙ 1/125 г","ХЛЕБ СЕЛЬСКИЙ 37,5 г","СУП ГРЕЧНЕВЫЙ С С КУРИЦЕЙ 200/10 г","САЛАТ ИЗ МОРКОВИ 50 г (с сахаром) ","ПЮРЕ КАРТОФЕЛЬНОЕ 130  (ттк 2021г)","КИСЕЛЬ 180 г*","ЁЖИКИ РЫБНЫЕ С РИСОМ В ТОМАТНОМ СОУСЕ 60/30 г (из п/ф 74 г Кобинат)","ХЛЕБ СЕЛЬСКИЙ 30 г","СУП ГРЕЧНЕВЫЙ С С КУРИЦЕЙ 150/10 г","САЛАТ ИЗ МОРКОВИ 30 г","ПЮРЕ КАРТОФЕЛЬНОЕ 110 г","КИСЕЛЬ 150 г*","ЁЖИКИ РЫБНЫЕ С РИСОМ 60 г из п/ф 74 г(Акт Август 2023 г) ","ЧАЙ С САХАРОМ 180/5 г (0,3 чай)","ХЛЕБ БЕЛЫЙ 1с 20 г","СУФЛЕ ИЗ ТВОРОГА СО СГУЩЁННЫМ МОЛОКОМ 150/20 г","ПЕЧЕНЬЕ КРЕКЕР 10 г","КЕФИР 2,5 % 110 г","ЧАЙ С САХАРОМ 160/4 г (0,2 чай)","ХЛЕБ БЕЛЫЙ 1с 20 г","СУФЛЕ ИЗ ТВОРОГА СО СГУЩЁННЫМ МОЛОКОМ 100/10 г (творог71,43)*","ПЕЧЕНЬЕ КРЕКЕР 10 г","КЕФИР  2,5  %  100 г","ХЛЕБ СЕЛЬСКИЙ 37,5 г","СУП ГРЕЧНЕВЫЙ С С КУРИЦЕЙ 200/10 г"]
[{"$nulls":3},"КАША ПОЛБЯНАЯ МОЛОЧНАЯ С МАСЛОМ 200/3 г (умен молоко)","КАКАО С МОЛОКОМ 180 г (с умен молоком и какао)","БУТЕРБРОД С МАСЛОМ 25/5 г","КАША ПОЛБЯНАЯ МОЛОЧНАЯ С МАСЛОМ 150/3 г (умен. крупа и молоко)","КАКАО С МОЛОКОМ 160 г (умен. молоко и какао)","БУТЕРБРОД С МАСЛОМ 25/5 г","СОК ФРУКТОВЫЙ 1/125 г","СОК ФРУКТОВЫЙ 1/125 г","ХЛЕБ СЕЛЬСКИЙ 37,5 г","СУП ГРЕЧНЕВЫЙ С С КУРИЦЕЙ 200/10 г","САЛАТ ИЗ МОРКОВИ 50 г (с сахаром) ","ПЮРЕ КАРТОФЕЛЬНОЕ 130  (ттк 2021г)","КИСЕЛЬ 180 г*","ЁЖИКИ РЫБНЫЕ С РИСОМ В ТОМАТНОМ СОУСЕ 60/30 г (из п/ф 74 г Кобинат)","ХЛЕБ СЕЛЬСКИЙ 30 г","СУП ГРЕЧНЕВЫЙ С С КУРИЦЕЙ 150/10 г","САЛАТ ИЗ МОРКОВИ 30 г","ПЮРЕ КАРТОФЕЛЬНОЕ 110 г","КИСЕЛЬ 150 г*","ЁЖИКИ РЫБНЫЕ С РИСОМ 60 г из п/ф 74 г(Акт Август 2023 г) ","ЧАЙ С САХАРОМ 180/5 г (0,3 чай)","ХЛЕБ БЕЛЫЙ 1с 20 г","СУФЛЕ ИЗ ТВОРОГА СО СГУЩЁННЫМ МОЛОКОМ 150/20 г","ПЕЧЕНЬЕ КРЕКЕР 10 г","КЕФИР 2,5 % 110 г","ЧАЙ С САХАРОМ 160/4 г (0,2 чай)","ХЛЕБ БЕЛЫЙ 1с 20 г","СУФЛЕ ИЗ ТВОРОГА СО СГУЩЁННЫМ МОЛОКОМ 100/10 г (творог71,43)*","ПЕЧЕНЬЕ КРЕКЕР 10 г","КЕФИР  2,5  %  100 г","ХЛЕБ СЕЛЬСКИЙ 37,5 г","СУП ГРЕЧНЕВЫЙ С С КУРИЦЕЙ 200/10 г","на довольствующихся","на персонал"]
[{"$nulls":3},"КАША ПОЛБЯНАЯ МОЛОЧНАЯ С МАСЛОМ 200/3 г (умен молоко)","КАКАО С МОЛОКОМ 180 г (с умен молоком и какао)","БУТЕРБРОД С МАСЛОМ 25/5 г","КАША ПОЛБЯНАЯ МОЛОЧНАЯ С МАСЛОМ 150/3 г (умен. крупа и молоко)","КАКАО С МОЛОКОМ 160 г (умен. молоко и какао)","БУТЕРБРОД С МАСЛОМ 25/5 г","СОК ФРУКТОВЫЙ 1/125 г","СОК ФРУКТОВЫЙ 1/125 г","ХЛЕБ СЕЛЬСКИЙ 37,5 г","СУП ГРЕЧНЕВЫЙ С С КУРИЦЕЙ 200/10 г","САЛАТ ИЗ МОРКОВИ 50 г (с сахаром) ","ПЮРЕ КАРТОФЕЛЬНОЕ 130  (ттк 2021г)","КИСЕЛЬ 180 г*","ЁЖИКИ РЫБНЫЕ С РИСОМ В ТОМАТНОМ СОУСЕ 60/30 г (из п/ф 74 г Кобинат)","ХЛЕБ СЕЛЬСКИЙ 30 г","СУП ГРЕЧНЕВЫЙ С С КУРИЦЕЙ 150/10 г","САЛАТ ИЗ МОРКОВИ 30 г","ПЮРЕ КАРТОФЕЛЬНОЕ 110 г","КИСЕЛЬ 150 г*","ЁЖИКИ РЫБНЫЕ С РИСОМ 60 г из п/ф 74 г(Акт Август 2023 г) ","ЧАЙ С САХАРОМ 180/5 г (0,3 чай)","ХЛЕБ БЕЛЫЙ 1с 20 г","СУФЛЕ ИЗ ТВОРОГА СО СГУЩЁННЫМ МОЛОКОМ 150/20 г","ПЕЧЕНЬЕ КРЕКЕР 10 г","КЕФИР 2,5 % 110 г","ЧАЙ С САХАРОМ 160/4 г (0,2 чай)","ХЛЕБ БЕЛЫЙ 1с 20 г","СУФЛЕ ИЗ ТВОРОГА СО СГУЩЁННЫМ МОЛОКОМ 100/10 г (творог71,43)*","ПЕЧЕНЬЕ КРЕКЕР 10 г","КЕФИР  2,5  %  100 г","ХЛЕБ СЕЛЬСКИЙ 37,5 г","СУП ГРЕЧНЕВЫЙ С С КУРИЦЕЙ 200/10 г","на довольствующихся","на персонал"]
[1,2,3,4,5,6,7,8,9,10,11,12,13,14,15,16,17,18,19,20,21,22,23,24,25,26,27,28,29,30,31,32,33,34,35,36,37]
["Количество порций",null,null,97,97,97,16,16,16,97,16,97,97,97,97,97,97,16,16,16,16,16,16,97,97,97,97,97,16,16,16,16,16,13,13]
["Выход - вес порций",null,null,{"$f":"SUM(D16:D44)","v":19295},18339,2910,2300,{"v":2852.8,"d":"2853"},480,97,16,{"v":3637.5,"d":"3638"},{"v":27246.329999999998,"d":"27246"},6111,{"v":16771.3,"d":"16771"},19940,{"v":4009.9799999999996,"d":"4010"},480,{"v":3456.96,"d":"3457"},{"v":604.8,"d":"605"},{"v":2349.92,"d":"2350"},2744,32,{"v":17974.1,"d":"17974"},1940,{"v":18434.57,"d":"18435"},970,11244,{"v":2627.2,"d":"2627"},320,{"v":1994.6,"d":"1995"},160,1656,564,{"v":3651.5699999999997,"d":"3652"}]
["БАТОН","ЦБ010940   ","гр.",null,null,2425,null,null,400,{"$nulls":26},{"$f":"SUM(D16:AG16)","v":2825},{"$f":"SUM(AH16:AI16)","v":0}]
["ВОДА","ЦБ007700   ","мл.",8536,9700,null,1040,1440,{"$nulls":4},13968,null,null,17460,2619,null,1728,null,null,2400,null,17460,{"$nulls":4},2560,{"$nulls":5},1872,78911,1872]
["ЁЖИКИ РЫБНЫЕ С РИСОМ п/ф 74 г б/масла  (Комбинат АКТ от 01.08.2023г)","ЦБ070149   ","мл.",{"$nulls":13},"97+2",{"$nulls":5},16,{"$nulls":12},115,0]
["КАКАО ПОРОШОК ","ЦБ007636   ","гр.",null,133,null,null,{"v":20.8,"d":"21"},{"$nulls":27},{"v":153.8,"d":"154"},0]
["КАРТОФЕЛЬ СВЕЖИЙ","ЦБ008912   ","гр.",{"$nulls":9},{"v":7740.599999999999,"d":"7741"},null,{"v":14397.710000000001,"d":"14398"},{"$nulls":3},{"v":957.6,"d":"958"},null,{"v":2009.44,"d":"2009"},{"$nulls":13},{"v":1037.3999999999999,"d":"1037"},{"v":25105.35,"d":"25105"},{"v":1037.3999999999999,"d":"1037"}]
["КЕФИР 2,5%","ЦБ019792   ","гр.",{"$nulls":24},11244,{"$nulls":4},1656,null,null,12900,0]
["КИСЕЛЬ","ЦБ007624   ","гр.",{"$nulls":12},1995,{"$nulls":5},280,{"$nulls":13},2275,0]
["КРЕКЕР","ЦБ043511   ","гр.",{"$nulls":23},970,{"$nulls":4},160,{"$nulls":3},1130,0]
["КРУПА ГРЕЧНЕВАЯ","ЦБ007622   ","гр.",{"$nulls":9},1164,{"$nulls":5},144,{"$nulls":15},156,1308,156]
["КРУПА МАННАЯ","ЦБ007621   ","гр.",{"$nulls":22},{"v":1105.8,"d":"1106"},{"$nulls":4},{"v":123.2,"d":"123"},{"$nulls":4},1229,0]
["КРУПА ПОЛБЯНАЯ","ЦБ012166   ","гр.",2231,null,null,304,{"$nulls":28},2535,0]
["ЛУК РЕПЧАТЫЙ","ЦБ008914   ","гр.",{"$nulls":9},{"v":923.4399999999999,"d":"923"},{"$nulls":3},{"v":692.5799999999999,"d":"693"},null,{"v":113.6,"d":"114"},{"$nulls":15},{"v":123.75999999999999,"d":"124"},{"v":1729.62,"d":"1730"},{"v":123.75999999999999,"d":"124"}]
["МАСЛО РАСТИТЕЛЬНОЕ  ","ЦБ007626   ","гр.",{"$nulls":9},194,{"$nulls":3},194,null,24,{"$nulls":3},16,null,null,{"v":58.199999999999996,"d":"58"},{"$nulls":4},{"v":6.4,"d":"6"},{"$nulls":3},26,{"v":492.59999999999997,"d":"493"},26]
["МАСЛО СЛИВОЧНОЕ","ЦБ007577   ","гр.",291,null,485,48,null,80,{"$nulls":5},291,{"$nulls":5},48,{"$nulls":14},1243,0]
["МОЛОКО","ЦБ008886   ","мл.",8043,7730,null,880,1280,{"$nulls":6},{"v":1985.59,"d":"1986"},{"$nulls":5},{"v":278.08,"d":"278"},{"$nulls":4},{"v":2075.7999999999997,"d":"2076"},{"$nulls":4},{"v":227.2,"d":"227"},{"$nulls":4},{"v":22499.670000000002,"d":"22500"},0]
["МОЛОКО СГУЩЕНОЕ","ЦБ007635   ","гр.",{"$nulls":22},2060,{"$nulls":4},160,{"$nulls":4},2220,0]
["МОРКОВЬ СВЕЖАЯ","ЦБ008911   ","гр.",{"$nulls":9},970,{"v":6062.5,"d":"6063"},null,null,{"v":218.25,"d":"218"},null,120,600,{"$nulls":14},130,{"v":7970.75,"d":"7971"},130]
["МУКА ПШЕНИЧНАЯ","ЦБ007608   ","гр.",{"$nulls":13},{"v":130.95000000000002,"d":"131"},{"$nulls":18},{"v":130.95000000000002,"d":"131"},0]
["САХАРНЫЙ ПЕСОК","ЦБ007607   ","гр.",97,776,null,12,112,{"$nulls":5},{"v":48.5,"d":"49"},null,485,{"v":29.099999999999998,"d":"29"},null,null,{"v":4.8,"d":"5"},null,64,null,485,null,{"v":1105.8,"d":"1106"},null,null,64,null,{"v":123.2,"d":"123"},{"$nulls":4},{"v":3406.3999999999996,"d":"3406"},0]
["СМЕТАНА  ","ЦБ008890   ","гр.",{"$nulls":22},{"v":1385.1599999999999,"d":"1385"},{"$nulls":4},152,{"$nulls":4},{"v":1537.1599999999999,"d":"1537"},0]
["СОК ФРУКТОВЫЙ в ассортим. 0,125  упак 1/18","ЦБ057804   ","шт.",{"$nulls":6},97,16,{"$nulls":24},113,0]
["СОЛЬ","ЦБ007609   ","гр.",97,null,null,16,{"$nulls":5},97,null,97,null,{"v":29.099999999999998,"d":"29"},null,8,null,{"v":14.4,"d":"14"},{"$nulls":4},{"v":29.099999999999998,"d":"29"},{"$nulls":4},{"v":1.6,"d":"2"},{"$nulls":3},13,{"v":389.20000000000005,"d":"389"},13]
["ТВОРОГ 5%","ЦБ023771   ","гр.",{"$nulls":22},{"v":10600.16,"d":"10600"},{"$nulls":4},1200,{"$nulls":4},{"v":11800.16,"d":"11800"},0]
["ТОМАТНАЯ ПАСТА","ЦБ007718   ","гр.",{"$nulls":13},97,{"$nulls":18},97,0]
["ТУШКА КУРИНАЯ ","ЦБ007666   ","гр.",{"$nulls":9},{"v":2189.29,"d":"2189"},{"$nulls":5},{"v":361.76,"d":"362"},{"$nulls":15},{"v":293.41,"d":"293"},{"v":2551.05,"d":"2551"},{"v":293.41,"d":"293"}]
["ХЛЕБ ПШЕНИЧНЫЙ","ЦБ007677   ","гр.",{"$nulls":21},1940,{"$nulls":4},320,{"$nulls":5},2260,0]
["ХЛЕБ РЖАНО-ПШЕНИЧНЫЙ ","ЦБ008895   ","гр.",{"$nulls":8},{"v":3637.5,"d":"3638"},{"$nulls":5},480,{"$nulls":15},564,null,{"v":4117.5,"d":"4118"},564]
["ЧАЙ","ЦБ007642   ","гр.",{"$nulls":20},{"v":29.099999999999998,"d":"29"},{"$nulls":4},{"v":3.2,"d":"3"},{"$nulls":6},{"v":32.3,"d":"32"},0]
["ЯЙЦО 1 КАТ.","ЦБ007670   ","шт.",{"$nulls":22},{"v":14.549999999999999,"d":"15"},{"$nulls":4},1,{"$nulls":4},{"v":15.549999999999999,"d":"16"},0]